bitfinex/quotes_SOLUSD_20240708
["timestamp","ask_amount","ask_price","bid_price","bid_amount"]
[1720424541289,0.1,132.79,132.69,38.86]
[1720424541489,0.1,132.79,132.7,20.17]
[1720424543005,16.5888,132.88,132.74,6.0891]
[1720424543218,0.1,132.89,132.76,6.0891]
[1720424543418,0.1,132.89,132.78,6.3124]
[1720424543601,0.1,132.89,132.79,20.17]
[1720424544988,100.1,132.89,132.79,20.17]
[1720424545194,100.0,132.97,132.82,7.5284]
[1720424545400,100.0,132.97,132.84,6.6408]
[1720424545602,0.1,132.99,132.85,59.03]
[1720424545945,100.1,132.99,132.85,59.03]
[1720424547224,100.0,132.97,132.85,59.03]
[1720424548715,100.0,132.97,132.85,66.5567]
[1720424548898,100.0,132.97,132.85,59.03]
[1720424549313,100.0,132.97,132.85,449.23]
[1720424550022,100.0,132.95,132.85,58.86]
[1720424550197,100.0,132.95,132.85,20.0]
[1720424550402,100.0,132.93,132.85,20.0]
[1720424550916,100.0,132.93,132.84,6.6408]
[1720424552510,0.17,132.94,132.81,2.0096]
[1720424552511,100.0,132.89,132.81,2.0096]
[1720424552723,100.0,132.89,132.8,6.1704]
[1720424553025,100.0,132.91,132.8,6.1704]
[1720424553399,100.0,132.89,132.8,6.1704]
[1720424553932,122.7,132.89,132.8,6.1704]
[1720424554239,100.0,132.91,132.81,20.0]
[1720424554442,100.0,132.94,132.81,20.0]
[1720424554943,22.7,132.93,132.82,0.17]
[1720424558020,100.0,132.9,132.82,0.17]
[1720424558224,122.7,132.9,132.8,6.1704]
[1720424558409,122.7,132.85,132.74,6.5286]
[1720424559310,122.7,132.85,132.74,12.65074082]
[1720424559509,100.0,132.9,132.75,1.74256347]
[1720424559707,100.0,132.9,132.75,21.74256347]
[1720424559934,100.0,132.9,132.76,22.6807]
[1720424560121,100.0,132.9,132.77,20.17]
[1720424560621,22.7,132.89,132.77,20.17]
[1720424563403,122.7,132.88,132.77,20.17]
[1720424563925,100.0,132.86,132.77,20.17]
[1720424564228,100.0,132.86,132.77,0.17]
[1720424564229,122.7,132.86,132.77,0.17]
[1720424565118,100.0,132.86,132.77,0.17]
[1720424565508,122.7,132.86,132.77,20.17]
[1720424567319,100.0,132.84,132.77,20.17]
[1720424567624,122.7,132.84,132.76,22.6807]
[1720424568004,122.7,132.84,132.76,6.66]
[1720424568932,122.7,132.84,132.73,5.98368565]
[1720424568933,122.7,132.81,132.73,12.03678565]
[1720424569321,122.7,132.81,132.73,6.0531]
[1720424569928,100.0,132.79,132.73,6.0531]
[1720424570104,122.7,132.79,132.73,6.0531]
[1720424570305,100.0,132.79,132.73,6.0531]
[1720424570507,122.7,132.79,132.73,6.0531]
[1720424571114,100.0,132.82,132.73,6.0531]
[1720424571429,22.7,132.81,132.73,6.0531]
[1720424571635,122.7,132.79,132.73,6.0531]
[1720424574716,122.7,132.81,132.73,6.0531]
[1720424575032,122.7,132.79,132.73,6.0531]
[1720424576633,100.0,132.83,132.73,6.0531]
[1720424576848,100.0,132.83,132.74,20.17]
[1720424577216,16.4108,132.87,132.74,20.0]
[1720424577217,100.0,132.81,132.74,20.0]
[1720424577436,100.0,132.79,132.74,20.0]
[1720424577742,122.7,132.79,132.73,6.0531]
[1720424580537,22.7,132.81,132.73,6.0531]
[1720424580718,16.4108,132.87,132.73,6.0531]
[1720424580719,100.0,132.83,132.73,6.0531]
[1720424581349,100.0,132.81,132.73,6.0531]
[1720424582016,100.0,132.83,132.73,6.0531]
[1720424582219,100.0,132.85,132.74,20.0]
[1720424582450,100.0,132.88,132.75,21.7281]
[1720424582639,100.0,132.88,132.76,20.0]
[1720424582640,22.7,132.87,132.76,20.0]
[1720424582940,100.0,132.85,132.77,0.17]
[1720424583930,100.0,132.88,132.77,0.17]
[1720424584244,15.2779,132.91,132.77,0.17]
[1720424584245,122.7,132.86,132.77,0.17]
[1720424584445,100.0,132.86,132.77,0.17]
[1720424585024,100.0,132.88,132.77,0.17]
[1720424585542,122.7,132.88,132.77,0.17]
[1720424585722,22.7,132.88,132.78,13.7389]
[1720424585928,22.7,132.88,132.79,20.17]
[1720424586435,100.0,132.87,132.79,20.17]
[1720424586640,100.0,132.85,132.79,20.17]
[1720424586854,100.0,132.85,132.79,20.0]
[1720424587144,122.7,132.85,132.79,20.0]
[1720424587334,122.7,132.85,132.78,6.2078]
[1720424587518,122.7,132.82,132.78,6.2078]
[1720424588428,122.87,132.84,132.78,6.2078]
[1720424588634,122.7,132.84,132.78,6.2078]
[1720424589340,122.7,132.82,132.78,6.2078]
[1720424589542,122.7,132.82,132.75,15.2767]
[1720424589750,122.7,132.8,132.71,15.1505]
[1720424590254,100.0,132.77,132.7,6.008]
[1720424591623,122.7,132.77,132.71,20.0]
[1720424592453,100.0,132.79,132.71,20.0]
[1720424593534,122.7,132.77,132.71,20.0]
[1720424594435,100.0,132.75,132.7,6.008]
[1720424595227,22.7,132.78,132.7,6.008]
[1720424595427,100.0,132.79,132.7,6.008]
[1720424596049,100.0,132.77,132.7,6.008]
[1720424596348,100.0,132.75,132.7,6.008]
[1720424597329,100.0,132.77,132.7,6.008]
[1720424597531,22.7,132.76,132.7,6.008]
[1720424598445,22.7,132.78,132.7,6.008]
[1720424598755,122.7,132.77,132.7,6.008]
[1720424598958,100.0,132.75,132.7,6.008]
[1720424600232,122.7,132.75,132.7,6.008]
[1720424601054,0.17,132.74,132.7,6.008]
[1720424601960,122.7,132.75,132.7,6.008]
[1720424602637,100.0,132.73,132.66,28.50120421]
[1720424602831,122.7,132.73,132.67,20.0]
[1720424604465,122.7,132.75,132.67,20.0]
[1720424604975,122.7,132.73,132.67,20.0]
[1720424606636,100.0,132.73,132.67,20.0]
[1720424606833,100.0,132.75,132.68,0.17]
[1720424607355,100.0,132.75,132.67,20.0]
[1720424607560,122.7,132.75,132.67,20.0]
[1720424608747,15.6893,132.8,132.67,20.0]
[1720424608748,100.0,132.73,132.67,20.0]
[1720424609348,122.7,132.73,132.67,20.0]
[1720424611171,100.0,132.71,132.67,20.0]
[1720424611354,122.7,132.71,132.66,6.5445]
[1720424611556,100.0,132.69,132.66,6.5445]
[1720424612054,100.0,132.71,132.66,6.5445]
[1720424612255,122.7,132.73,132.66,6.5445]
[1720424613369,138.8732,132.73,132.64,6.15666599]
[1720424613665,100.0,132.71,132.63,0.17]
[1720424613868,100.0,132.73,132.63,20.17]
[1720424614066,122.7,132.76,132.63,20.17]
[1720424614368,100.0,132.79,132.68,6.4774]
[1720424614541,100.0,132.79,132.69,20.17]
[1720424614964,22.7,132.8,132.69,20.17]
[1720424615364,100.0,132.81,132.7,16.0259]
[1720424615557,100.0,132.81,132.72,6.5594]
[1720424615792,100.0,132.84,132.73,20.17]
[1720424616153,22.7,132.83,132.73,20.17]
[1720424616361,100.0,132.8,132.73,20.17]
[1720424616663,122.7,132.82,132.73,20.17]
[1720424616867,100.0,132.8,132.73,20.17]
[1720424617068,100.0,132.8,132.73,20.0]
[1720424617370,122.7,132.8,132.73,20.0]
[1720424617568,100.0,132.78,132.73,20.0]
[1720424617765,122.7,132.78,132.72,6.5594]
[1720424619963,100.0,132.76,132.7,16.0259]
[1720424620171,122.7,132.78,132.69,396.5382]
[1720424620362,122.7,132.78,132.7,20.0]
[1720424622474,100.0,132.8,132.71,0.17]
[1720424623349,122.68,132.8,132.71,0.17]
[1720424625556,122.68,132.8,132.7,20.0]
[1720424625751,100.0,132.78,132.7,20.0]
[1720424626661,122.68,132.78,132.7,20.0]
[1720424626970,22.4053,132.84,132.69,6.3382]
[1720424626971,100.0,132.74,132.69,6.3382]
[1720424627372,100.0,132.72,132.69,6.3382]
[1720424627774,100.0,132.72,132.67,5.93151599]
[1720424627986,100.0,132.72,132.66,22.8015]
[1720424628174,100.0,132.72,132.67,20.0]
[1720424628481,100.0,132.7,132.67,20.0]
[1720424628780,100.0,132.7,132.66,6.5702]
[1720424629290,122.68,132.7,132.64,6.06882536]
[1720424629468,122.68,132.7,132.63,15.2592]
[1720424631364,100.0,132.66,132.62,6.0467]
[1720424637286,100.0,132.66,132.61,0.1]
[1720424637801,22.68,132.67,132.61,0.1]
[1720424637958,22.68,132.69,132.61,0.1]
[1720424638268,22.68,132.69,132.61,0.27]
[1720424638471,100.0,132.68,132.61,0.27]
[1720424638982,22.68,132.69,132.61,0.27]
[1720424640886,100.0,132.7,132.61,0.27]
[1720424641060,22.68,132.71,132.62,34.48]
[1720424641263,122.68,132.71,132.63,0.17]
[1720424641676,122.68,132.71,132.63,20.17]
[1720424642069,22.68,132.71,132.63,20.17]
[1720424642368,100.0,132.74,132.65,16.4481]
[1720424642578,100.0,132.77,132.66,20.17]
[1720424642776,100.0,132.74,132.66,20.17]
[1720424643177,122.68,132.74,132.66,20.17]
[1720424643770,122.68,132.74,132.66,0.17]
[1720424644213,122.68,132.76,132.66,20.17]
[1720424644501,122.68,132.76,132.67,34.48]
[1720424644673,122.68,132.76,132.68,0.17]
[1720424644862,22.68,132.77,132.67,6.2751]
[1720424645066,16.1185,132.81,132.68,20.17]
[1720424645374,100.0,132.83,132.68,27.7067]
[1720424645375,22.68,132.82,132.68,27.7067]
[1720424646597,22.68,132.78,132.68,20.17]
[1720424647566,22.68,132.76,132.68,20.17]
[1720424647766,6.2057,132.84,132.68,20.17]
[1720424647767,22.68,132.78,132.68,20.17]
[1720424648186,100.0,132.81,132.68,20.17]
[1720424648383,100.0,132.83,132.69,21.3182]
[1720424648685,100.0,132.83,132.7,20.17]
[1720424648887,22.68,132.84,132.71,44.7959]
[1720424649085,22.68,132.84,132.72,27.7045]
[1720424649292,22.68,132.86,132.73,21.1065]
[1720424649472,22.68,132.83,132.74,20.17]
[1720424649878,22.68,132.83,132.74,20.0]
[1720424650076,22.68,132.81,132.74,20.0]
[1720424651591,22.68,132.81,132.73,21.1065]
[1720424651804,22.68,132.78,132.73,21.1065]
[1720424652096,22.68,132.78,132.73,6.0559]
[1720424652394,22.68,132.78,132.7,6.0997]
[1720424652595,100.0,132.79,132.71,0.17]
[1720424652895,22.68,132.81,132.71,0.17]
[1720424653395,100.0,132.84,132.71,7.7047]
[1720424653783,22.68,132.83,132.72,7.5345]
[1720424653986,22.68,132.83,132.73,0.17]
[1720424654179,6.8294,132.85,132.73,0.17]
[1720424654180,22.68,132.8,132.73,0.17]
[1720424654579,22.68,132.8,132.7,396.2997]
[1720424654897,22.68,132.78,132.71,0.17]
[1720424655096,100.0,132.79,132.71,0.17]
[1720424655097,122.68,132.79,132.71,0.17]
[1720424656106,22.68,132.8,132.71,20.17]
[1720424656507,22.68,132.78,132.71,20.17]
[1720424657916,100.0,132.81,132.71,20.17]
[1720424658208,100.0,132.83,132.71,20.17]
[1720424658418,100.0,132.79,132.71,20.17]
[1720424658820,22.68,132.78,132.71,20.17]
[1720424658982,100.0,132.79,132.71,20.17]
[1720424660009,22.68,132.78,132.71,20.17]
[1720424660705,22.68,132.8,132.71,20.17]
[1720424660909,22.68,132.82,132.71,20.17]
[1720424661292,22.68,132.82,132.72,6.1969]
[1720424661487,22.68,132.82,132.73,20.17]
[1720424661693,100.0,132.85,132.73,20.17]
[1720424661903,22.68,132.84,132.73,20.17]
[1720424662216,22.68,132.8,132.73,20.0]
[1720424663511,22.68,132.78,132.72,6.1969]
[1720424666603,100.0,132.79,132.72,6.1969]
[1720424666805,22.68,132.8,132.72,6.1969]
[1720424667515,100.0,132.83,132.72,6.1969]
[1720424667812,22.68,132.8,132.73,0.17]
[1720424668113,22.68,132.78,132.72,6.1969]
[1720424668702,22.68,132.78,132.73,20.0]
[1720424669217,22.68,132.78,132.72,6.1969]
[1720424669390,100.0,132.77,132.72,6.1969]
[1720424669594,122.68,132.77,132.72,6.1969]
[1720424670112,22.68,132.78,132.72,6.1969]
[1720424670514,40.7623,132.84,132.72,6.1969]
[1720424670515,100.0,132.83,132.72,6.1969]
[1720424670694,100.0,132.83,132.73,0.17]
[1720424670896,100.0,132.83,132.72,6.1969]
[1720424671096,22.68,132.82,132.72,6.1969]
[1720424672215,40.5923,132.84,132.72,6.1969]
[1720424672216,22.68,132.78,132.72,6.1969]
[1720424674620,100.0,132.77,132.72,6.1969]
[1720424674812,122.68,132.76,132.72,6.1969]
[1720424675611,22.68,132.73,132.68,396.476]
[1720424676801,100.0,132.74,132.68,390.2]
[1720424676802,22.68,132.71,132.68,390.2]
[1720424679717,22.68,132.71,132.65,22.6439]
[1720424680315,22.68,132.69,132.65,22.6439]
[1720424680506,22.68,132.69,132.65,6.276]
[1720424681322,22.68,132.69,132.62,56.5887]
[1720424682625,22.85,132.72,132.62,56.5887]
[1720424682815,0.17,132.71,132.62,56.5887]
[1720424686527,22.68,132.68,132.62,22.1687]
[1720424690309,22.68,132.68,132.62,6.0803]
[1720424691005,22.68,132.7,132.62,6.0803]
[1720424691209,22.68,132.7,132.63,0.17]
[1720424692233,22.68,132.7,132.62,40.5003]
[1720424692932,22.68,132.68,132.62,6.0803]
[1720424693328,22.68,132.68,132.61,0.1]
[1720424693527,6.4514,132.7,132.61,20.1]
[1720424693528,122.68,132.67,132.61,20.1]
[1720424694328,122.68,132.67,132.61,0.1]
[1720424698215,22.68,132.64,132.61,0.1]
[1720424701417,22.68,132.66,132.61,0.1]
[1720424702144,22.68,132.64,132.61,0.1]
[1720424704529,22.68,132.62,132.61,0.1]
[1720424705623,16.0512,132.67,132.61,0.1]
[1720424705624,22.68,132.64,132.61,0.1]
[1720424705867,22.68,132.66,132.61,0.1]
[1720424706026,116.2256,132.72,132.62,6.4753]
[1720424706340,16.2256,132.72,132.63,50.0815]
[1720424706539,122.68,132.71,132.63,50.0815]
[1720424707527,22.68,132.71,132.63,50.0815]
[1720424707841,22.68,132.69,132.63,15.4915]
[1720424709046,22.68,132.71,132.63,15.4915]
[1720424709254,22.68,132.71,132.64,0.17]
[1720424709425,22.68,132.75,132.65,34.42]
[1720424709637,22.68,132.75,132.67,34.42]
[1720424709830,22.68,132.75,132.68,6.6476]
[1720424710232,22.68,132.76,132.68,6.6476]
[1720424710450,22.68,132.76,132.69,51.0142]
[1720424710651,22.68,132.77,132.69,51.0142]
[1720424710957,23.45792612,132.81,132.7,0.17]
[1720424711136,15.8283,132.84,132.71,34.42]
[1720424711339,15.8283,132.84,132.74,6.5007]
[1720424711547,22.68,132.86,132.76,16.56]
[1720424711746,22.68,132.83,132.76,16.56]
[1720424713659,22.68,132.81,132.74,6.5007]
[1720424714957,22.68,132.79,132.74,6.5007]
[1720424715257,22.68,132.77,132.7,22.3892]
[1720424715871,16.3526,132.8,132.66,22.9809]
[1720424715872,22.68,132.74,132.66,22.9809]
[1720424718379,0.17,132.76,132.66,6.4868]
[1720424718380,22.68,132.72,132.66,6.4868]
[1720424718539,22.68,132.72,132.63,6.2699]
[1720424720560,22.68,132.7,132.63,6.2699]
[1720424722363,22.68,132.7,132.61,0.1]
[1720424722537,22.68,132.7,132.61,20.27]
[1720424723476,6.0175,132.74,132.63,7.5393]
[1720424723644,22.68,132.73,132.64,26.2077]
[1720424723982,15.8427,132.76,132.64,33.7463]
[1720424724144,100.0,132.79,132.65,16.5858]
[1720424724462,121.7325,132.81,132.69,6.5474]
[1720424724667,22.68,132.8,132.7,0.17]
[1720424725068,22.68,132.75,132.69,6.5474]
[1720424725244,22.68,132.75,132.66,6.649]
[1720424725444,22.68,132.75,132.67,20.17]
[1720424726058,22.68,132.75,132.67,0.17]
[1720424726260,22.68,132.76,132.66,6.649]
[1720424726654,22.68,132.76,132.67,0.17]
[1720424728076,22.68,132.75,132.67,20.17]
[1720424728858,22.68,132.78,132.67,20.17]
[1720424729272,22.68,132.76,132.67,20.17]
[1720424729579,0.17,132.79,132.66,6.649]
[1720424729580,22.68,132.72,132.66,6.649]
[1720424730451,22.68,132.74,132.66,6.649]
[1720424730685,0.17,132.79,132.66,6.649]
[1720424730973,22.68,132.76,132.66,6.649]
[1720424731355,22.68,132.76,132.67,0.17]
[1720424733851,22.68,132.75,132.67,0.17]
[1720424734057,22.68,132.8,132.67,0.17]
[1720424734256,22.68,132.8,132.69,15.8252]
[1720424734485,22.68,132.8,132.71,6.443]
[1720424734783,16.5954,132.85,132.72,20.17]
[1720424735077,22.68,132.84,132.72,20.17]
[1720424735764,22.68,132.84,132.72,27.7046]
[1720424735958,22.68,132.84,132.72,20.17]
[1720424736368,22.68,132.84,132.72,27.7044]
[1720424736568,22.68,132.85,132.73,30.2224]
[1720424736788,22.68,132.85,132.75,6.6565]
[1720424736998,22.68,132.85,132.76,0.17]
[1720424737484,22.68,132.88,132.76,0.17]
[1720424737662,22.68,132.85,132.76,0.17]
[1720424739068,22.68,132.88,132.76,0.17]
[1720424740054,100.0,132.86,132.76,0.17]
[1720424740273,22.68,132.85,132.76,0.17]
[1720424741259,0.17,132.87,132.76,0.17]
[1720424741775,22.68,132.84,132.75,6.6565]
[1720424742768,22.68,132.83,132.75,6.6565]
[1720424743765,22.68,132.81,132.75,6.6565]
[1720424745082,22.68,132.79,132.73,16.0321]
[1720424745393,22.68,132.79,132.72,6.0545]
[1720424745863,0.17,132.81,132.72,6.0545]
[1720424745864,22.68,132.77,132.72,6.0545]
[1720424746470,22.68,132.77,132.69,15.1235]
[1720424746667,22.68,132.75,132.69,15.1235]
[1720424747580,22.85,132.78,132.69,15.1235]
[1720424747778,0.17,132.77,132.69,15.1235]
[1720424749574,15.5818,132.82,132.69,15.1235]
[1720424749575,22.68,132.8,132.69,15.1235]
[1720424749883,122.68,132.78,132.69,15.1235]
[1720424750276,22.68,132.75,132.68,6.3859]
[1720424750983,22.68,132.73,132.68,6.3859]
[1720424751186,22.68,132.73,132.65,22.6999]
[1720424752190,22.68,132.72,132.65,22.6999]
[1720424752777,22.68,132.72,132.66,0.17]
[1720424752991,22.68,132.76,132.66,0.17]
[1720424753177,22.68,132.76,132.65,22.6999]
[1720424753178,22.68,132.73,132.65,22.6999]
[1720424754670,22.68,132.76,132.65,22.6999]
[1720424754869,22.68,132.76,132.66,0.17]
[1720424755073,122.68,132.73,132.65,22.6999]
[1720424755593,22.68,132.73,132.65,22.6999]
[1720424755809,22.68,132.73,132.66,0.17]
[1720424756302,22.68,132.74,132.66,0.17]
[1720424757176,22.68,132.74,132.65,22.6999]
[1720424759208,22.68,132.76,132.65,22.6999]
[1720424759492,22.68,132.76,132.66,0.17]
[1720424759690,22.68,132.76,132.67,6.528]
[1720424759881,22.68,132.76,132.68,0.17]
[1720424760283,122.68,132.75,132.67,6.528]
[1720424760487,22.68,132.75,132.67,6.528]
[1720424760674,22.68,132.75,132.68,0.17]
[1720424760871,122.68,132.75,132.67,6.528]
[1720424761083,12.40593232,132.81,132.67,6.528]
[1720424761084,22.68,132.72,132.67,6.528]
[1720424761776,12.40593232,132.81,132.67,6.528]
[1720424761777,22.68,132.78,132.67,6.528]
[1720424762168,22.68,132.77,132.67,6.528]
[1720424762373,22.68,132.77,132.69,16.6347]
[1720424762588,16.533,132.82,132.7,0.17]
[1720424762799,22.68,132.82,132.71,6.243]
[1720424763304,22.68,132.83,132.72,0.17]
[1720424763604,22.68,132.83,132.74,7.5334]
[1720424763910,22.68,132.83,132.75,0.17]
[1720424764472,22.68,132.83,132.74,0.17]
[1720424765200,22.68,132.82,132.74,0.17]
[1720424766203,22.68,132.85,132.74,0.17]
[1720424767284,22.68,132.83,132.74,0.17]
[1720424768603,22.68,132.85,132.74,0.17]
[1720424769395,22.68,132.81,132.73,22.6912]
[1720424770597,22.68,132.79,132.73,22.6912]
[1720424770931,22.68,132.77,132.73,6.243]
[1720424772602,22.68,132.77,132.69,22.8946]
[1720424772898,21.8145,132.82,132.65,16.0732]
[1720424772899,100.0,132.74,132.65,16.0732]
[1720424773096,22.68,132.73,132.66,6.4644]
[1720424774399,22.68,132.71,132.62,6.379]
[1720424776311,22.68,132.69,132.62,6.379]
[1720424777313,22.68,132.69,132.63,0.17]
[1720424777518,22.68,132.69,132.62,6.379]
[1720424778013,122.68,132.69,132.62,6.379]
[1720424779721,22.68,132.69,132.62,6.379]
[1720424779902,22.68,132.7,132.62,6.379]
[1720424780900,22.68,132.69,132.62,6.379]
[1720424782827,22.68,132.67,132.62,6.379]
[1720424784226,22.68,132.69,132.62,6.379]
[1720424784519,22.68,132.66,132.62,6.379]
[1720424785437,22.68,132.67,132.62,6.379]
[1720424786428,22.68,132.69,132.62,6.379]
[1720424786630,22.68,132.69,132.63,16.5093]
[1720424786815,22.68,132.71,132.64,0.17]
[1720424787131,22.68,132.71,132.63,16.5093]
[1720424787429,22.68,132.73,132.63,16.5093]
[1720424787936,22.68,132.73,132.64,0.17]
[1720424788146,22.68,132.7,132.63,16.5093]
[1720424788304,22.68,132.7,132.64,0.17]
[1720424788814,100.0,132.73,132.64,0.17]
[1720424789030,22.68,132.72,132.64,0.17]
[1720424790104,22.68,132.7,132.63,16.5093]
[1720424791622,22.68,132.68,132.63,16.5093]
[1720424792734,22.68,132.7,132.63,16.5093]
[1720424794042,22.68,132.74,132.64,0.17]
[1720424795150,22.68,132.76,132.65,6.1981]
[1720424795438,22.68,132.76,132.66,0.17]
[1720424795959,22.68,132.74,132.66,0.17]
[1720424796640,22.68,132.72,132.65,6.1981]
[1720424797320,22.68,132.72,132.66,0.17]
[1720424798443,22.68,132.76,132.66,0.17]
[1720424798639,22.68,132.78,132.66,0.17]
[1720424798942,0.17,132.77,132.66,0.17]
[1720424799140,22.68,132.76,132.66,0.17]
[1720424799921,100.17,132.77,132.65,6.1981]
[1720424799922,22.68,132.74,132.65,6.1981]
[1720424800243,22.68,132.72,132.65,6.1981]
[1720424804942,22.48,132.72,132.65,6.1981]
[1720424805145,49.59078884,132.79,132.66,0.17]
[1720424805146,22.28,132.74,132.66,0.17]
[1720424805643,22.68,132.77,132.67,15.3161]
[1720424805950,22.68,132.77,132.68,0.17]
[1720424806539,22.68,132.77,132.68,34.6]
[1720424808627,22.68,132.77,132.68,0.17]
[1720424809648,21.15809791,132.81,132.67,15.3161]
[1720424809649,22.68,132.75,132.67,15.3161]
[1720424810333,22.68,132.73,132.67,15.3161]
[1720424811328,22.68,132.71,132.65,6.1981]
[1720424811929,22.68,132.69,132.62,6.273]
[1720424814555,22.68,132.67,132.62,6.273]
[1720424817455,22.68,132.69,132.62,6.273]
[1720424817630,22.68,132.66,132.62,6.273]
[1720424818644,22.68,132.71,132.62,6.273]
[1720424819449,22.68,132.69,132.62,6.273]
[1720424819751,122.68,132.69,132.62,6.273]
[1720424820441,22.68,132.68,132.62,6.273]
[1720424821334,122.68,132.68,132.62,6.273]
[1720424821733,22.68,132.65,132.62,6.273]
[1720424821936,22.68,132.65,132.61,0.1]
[1720424822852,22.68,132.69,132.61,0.1]
[1720424823360,100.0,132.73,132.62,6.4737]
[1720424823556,21.63503281,132.74,132.62,6.4737]
[1720424823557,100.0,132.71,132.62,6.4737]
[1720424823858,22.68,132.7,132.62,6.4737]
[1720424825165,22.68,132.69,132.62,6.4737]
[1720424825375,4.87530136,132.77,132.65,6.3958]
[1720424825664,100.0,132.81,132.68,6.3958]
[1720424825866,100.0,132.81,132.65,1.74387712]
[1720424825867,116.3388,132.83,132.7,29.4078]
[1720424826169,100.0,132.81,132.7,21.8721]
[1720424826344,22.68,132.82,132.71,0.17]
[1720424826743,22.68,132.8,132.71,0.17]
[1720424827975,5.93674876,132.86,132.71,0.17]
[1720424827976,22.68,132.79,132.71,0.17]
[1720424828161,5.93674876,132.86,132.74,6.0005]
[1720424828162,22.68,132.85,132.74,6.0005]
[1720424828362,22.68,132.85,132.75,0.17]
[1720424828550,22.68,132.82,132.74,6.0005]
[1720424829644,22.68,132.8,132.74,6.0005]
[1720424830477,22.68,132.78,132.7,21.6389]
[1720424830677,100.0,132.79,132.7,6.1626]
[1720424830678,22.68,132.75,132.7,6.1626]
[1720424831680,120.0,132.77,132.7,6.1626]
[1720424831681,22.68,132.76,132.7,6.1626]
[1720424831864,22.68,132.74,132.7,6.1626]
[1720424832545,21.3501,132.83,132.7,6.1626]
[1720424832546,121.3501,132.83,132.7,6.1626]
[1720424832744,15.1633,132.83,132.71,7.5351]
[1720424833278,100.0,132.86,132.74,14.1536]
[1720424833577,22.68,132.85,132.75,0.17]
[1720424834776,22.68,132.84,132.75,0.17]
[1720424835275,22.68,132.84,132.76,7.5321]
[1720424835478,22.68,132.84,132.77,0.17]
[1720424835685,22.68,132.84,132.78,7.5311]
[1720424835857,22.68,132.89,132.79,0.17]
[1720424836059,122.68,132.87,132.79,0.17]